fUST/lending_fUST_20250323
["ID","MTS","AMOUNT","RATE_DAILY","PERIOD"]
[356584035,1742730632623,-500.0,0.00013673,2]
[356584036,1742730632632,-500.0,0.00013673,2]
[356584037,1742730632641,-500.0,0.00013673,2]
[356584038,1742730632651,-600.0,0.0001369,2]
[356584039,1742730632660,-500.0,0.00013698,2]
[356584040,1742730632669,-500.0,0.00013698,2]
[356584041,1742730632679,-500.0,0.00013698,2]
[356584042,1742730632689,-500.0,0.00013698,2]
[356584043,1742730632698,-500.0,0.00013698,2]
[356584044,1742730632707,-500.0,0.00013698,2]
[356584045,1742730632716,-500.0,0.00013698,2]
[356584046,1742730632725,-500.0,0.00013698,2]
[356584047,1742730632734,-190.18074385,0.00013698,2]
[356584048,1742730633512,-324.20925615,0.00013698,2]
[356584049,1742730633522,-797.44,0.00013698,2]
[356584050,1742730633534,-500.0,0.00013698,2]
[356584051,1742730633543,-649.5,0.00013698,2]
[356584052,1742730633553,-328.85074385,0.00013698,2]
[356584053,1742730633566,-171.14925615,0.00013698,2]
[356584054,1742730633576,-500.0,0.00013698,2]
[356584055,1742730633586,-500.0,0.00013698,2]
[356584056,1742730633596,-500.0,0.00013698,2]
[356584057,1742730633606,-548.28,0.00013698,2]
[356584058,1742730633616,-530.57074385,0.00013698,2]
[356584059,1742730633628,-587.46925615,0.00013698,2]
[356584060,1742730633637,-500.0,0.00013698,2]
[356584061,1742730633647,-585.08,0.00013698,2]
[356584062,1742730633656,-500.0,0.00013698,2]
[356584063,1742730633666,-500.0,0.00013698,2]
[356584064,1742730633675,-531.14,0.00013698,2]
[356584065,1742730633685,-309.59727726,0.00013698,2]
[356584066,1742730634322,-404.30481015,0.00013697,2]
[356584067,1742730634348,-253.71272274,0.00013698,2]
[356584068,1742730634375,-500.0,0.00013698,2]
[356584069,1742730634400,-716.81,0.00013698,2]
[356584070,1742730634428,-500.0,0.00013698,2]
[356584071,1742730634455,-619.32,0.00013698,2]
[356584072,1742730634481,-500.0,0.00013698,2]
[356584073,1742730634507,-500.0,0.00013698,2]
[356584074,1742730634534,-500.0,0.00013698,2]
[356584075,1742730634561,-500.0,0.00013698,2]
[356584076,1742730634586,-500.0,0.00013698,2]
[356584077,1742730634612,-500.0,0.00013698,2]
[356584078,1742730634638,-500.0,0.00013698,2]
[356584079,1742730634665,-500.0,0.00013698,2]
[356584080,1742730634692,-500.0,0.00013698,2]
[356584081,1742730634718,-500.0,0.00013698,2]
[356584082,1742730634744,-706.46,0.00013698,2]
[356584083,1742730634769,-500.0,0.00013698,2]
[356584084,1742730634794,-714.46,0.00013698,2]
[356584085,1742730634819,-500.0,0.00013698,2]
[356584086,1742730634845,-500.0,0.00013698,2]
[356584087,1742730634870,-500.0,0.00013698,2]
[356584088,1742730634896,-500.0,0.00013698,2]
[356584089,1742730634921,-500.0,0.00013698,2]
[356584090,1742730634946,-649.23,0.00013698,2]
[356584091,1742730634972,-270.75490451,0.00013698,2]
[356584092,1742730634999,-500.0,0.00013698,2]
[356584093,1742730635026,-500.0,0.00013698,2]
[356584094,1742730635052,-500.0,0.00013698,2]
[356584095,1742730635077,-1298.08,0.00013698,2]
[356584096,1742730635102,-563.48,0.00013698,2]
[356584097,1742730635127,-500.0,0.00013698,2]
[356584098,1742730635153,-1474.65,0.00013698,2]
[356584099,1742730635178,-1463.45,0.00013698,2]
[356584100,1742730635204,-533.15,0.00013698,2]
[356584101,1742730635229,-500.0,0.00013698,2]
[356584102,1742730635254,-500.0,0.00013698,2]
[356584103,1742730635279,-2004.25,0.00013698,2]
[356584104,1742730635304,-500.0,0.00013698,2]
[356584105,1742730635331,-500.0,0.00013698,2]
[356584106,1742730635355,-327.8875626,0.00013698,2]
[356584107,1742730635559,-795.8824374,0.00013698,2]
[356584108,1742730635587,-870.77,0.00013698,2]
[356584109,1742730635612,-649.16,0.00013698,2]
[356584110,1742730635636,-645.73,0.00013698,2]
[356584111,1742730635661,-500.0,0.00013698,2]
[356584112,1742730635686,-675.87,0.00013698,2]
[356584113,1742730635710,-500.0,0.00013698,2]
[356584114,1742730635735,-943.4,0.00013698,2]
[356584115,1742730635759,-500.0,0.00013698,2]
[356584116,1742730635783,-500.0,0.00013698,2]
[356584117,1742730635806,-1052.33,0.00013698,2]
[356584118,1742730635831,-500.0,0.00013698,2]
[356584119,1742730635855,-505.32,0.00013698,2]
[356584120,1742730635879,-1814.26,0.00013698,2]
[356584121,1742730635905,-500.0,0.00013698,2]
[356584122,1742730635932,-521.21,0.00013698,2]
[356584123,1742730635958,-500.0,0.00013698,2]
[356584124,1742730635984,-1055.77,0.00013698,2]
[356584125,1742730636009,-500.0,0.00013698,2]
[356584126,1742730636034,-1018.03,0.00013698,2]
[356584127,1742730636058,-359.89096737,0.00013698,2]
[356584128,1742730636083,-1264.88,0.00013698,2]
[356584129,1742730636109,-514.31,0.00013698,2]
[356584130,1742730636133,-500.0,0.00013698,2]
[356584131,1742730636157,-500.0,0.00013698,2]
[356584132,1742730636182,-500.0,0.00013698,2]
[356584133,1742730636326,-500.0,0.00013698,2]
[356584134,1742730636352,-500.0,0.00013698,2]
[356584135,1742730636377,-609.74,0.00013698,2]
[356584136,1742730636402,-500.0,0.00013698,2]
[356584137,1742730636428,-500.0,0.00013698,2]
[356584138,1742730636452,-500.0,0.00013698,2]
[356584139,1742730636477,-500.0,0.00013698,2]
[356584140,1742730636501,-208.08274358,0.00013698,2]
[356584141,1742730636526,-155.71104972,0.00013698,2]
[356584142,1742730636550,-500.0,0.00013698,2]
[356584143,1742730636574,-500.0,0.00013698,2]
[356584144,1742730636598,-854.62,0.00013698,2]
[356584145,1742730636624,-735.67,0.00013698,2]
[356584146,1742730636650,-239.70886531,0.00013698,2]
[356584147,1742730636676,-9.65393662,0.00013698,2]
[356584148,1742730636835,-490.34606338,0.00013698,2]
[356584149,1742730636861,-528.48,0.00013698,2]
[356584150,1742730636886,-527.75,0.00013698,2]
[356584151,1742730636912,-1208.68,0.00013698,2]
[356584152,1742730636937,-600.9,0.00013698,2]
[356584153,1742730636963,-1986.74,0.00013698,2]
[356584154,1742730636990,-709.4,0.00013698,2]
[356584155,1742730637015,-500.0,0.00013698,2]
[356584156,1742730637041,-624.66,0.00013698,2]
[356584157,1742730637066,-1062.66,0.00013698,2]
[356584158,1742730637091,-500.0,0.00013698,2]
[356584159,1742730637117,-500.0,0.00013698,2]
[356584160,1742730637141,-676.97,0.00013698,2]
[356584161,1742730637166,-500.0,0.00013698,2]
[356584162,1742730637190,-500.0,0.00013698,2]
[356584163,1742730637214,-500.0,0.00013698,2]
[356584164,1742730637239,-500.0,0.00013698,2]
[356584165,1742730637265,-500.0,0.00013698,2]
[356584166,1742730637289,-647.59,0.00013698,2]
[356584167,1742730637314,-5164.08,0.00013698,2]
[356584168,1742730637342,-695.29,0.00013698,2]
[356584169,1742730637367,-875.9,0.00013698,2]
[356584170,1742730637393,-500.0,0.00013698,2]
[356584171,1742730637420,-500.0,0.00013698,2]
[356584172,1742730637446,-722.85,0.00013698,2]
[356584173,1742730637470,-500.0,0.00013698,2]
[356584174,1742730637494,-500.0,0.00013698,2]
[356584175,1742730637520,-500.0,0.00013698,2]
[356584176,1742730637545,-500.0,0.00013698,2]
[356584177,1742730637571,-500.0,0.00013698,2]
[356584178,1742730637595,-500.0,0.00013698,2]
[356584179,1742730637620,-477.70393662,0.00013698,2]
[356584180,1742730637690,-22.29606338,0.00013698,2]
[356584181,1742730637718,-500.0,0.00013698,2]
[356584182,1742730637742,-2503.01,0.00013698,2]
[356584183,1742730637767,-683.63,0.00013698,2]
[356584184,1742730637791,-500.0,0.00013698,2]
[356584185,1742730637816,-201.38766199,0.00013698,2]
[356584186,1742730637841,-500.0,0.00013698,2]
[356584189,1742730637865,-500.0,0.00013698,2]
[356584191,1742730637890,-500.0,0.00013698,2]
[356584193,1742730637918,-791.6,0.00013698,2]
[356584195,1742730637943,-1801.19,0.00013698,2]
[356584196,1742730637967,-500.0,0.00013698,2]
[356584197,1742730637992,-526.36,0.00013698,2]
[356584199,1742730638017,-500.0,0.00013698,2]
[356584200,1742730638041,-1052.14,0.00013698,2]
[356584201,1742730638066,-500.0,0.00013698,2]
[356584204,1742730638091,-500.0,0.00013698,2]
[356584205,1742730638115,-500.0,0.00013698,2]
[356584207,1742730638139,-500.0,0.00013698,2]
[356584208,1742730638164,-500.0,0.00013698,2]
[356584209,1742730638189,-500.0,0.00013698,2]
[356584210,1742730638214,-500.0,0.00013698,2]
[356584211,1742730638238,-1097.39,0.00013698,2]
[356584212,1742730638262,-500.0,0.00013698,2]
[356584214,1742730638288,-793.28,0.00013698,2]
[356584217,1742730638313,-1064.04,0.00013698,2]
[356584220,1742730638338,-500.0,0.00013698,2]
[356584222,1742730638363,-298.26982798,0.00013698,2]
[356584223,1742730638388,-786.39,0.00013698,2]
[356584224,1742730638413,-500.0,0.00013698,2]
[356584225,1742730638439,-501.16218601,0.00013698,2]
[356584226,1742730638468,-500.0,0.00013698,2]
[356584228,1742730638493,-500.0,0.00013698,2]
[356584229,1742730638756,-609.87,0.00013698,2]
[356584230,1742730638783,-2767.98426064,0.00013698,2]
[356584231,1742730638870,-2918.84573936,0.00013698,2]
[356584232,1742730638896,-657.35,0.00013698,2]
[356584233,1742730638921,-2072.26,0.00013698,2]
[356584234,1742730638945,-500.0,0.00013698,2]
[356584235,1742730638969,-500.0,0.00013698,2]
[356584236,1742730638996,-601.51,0.00013698,2]
[356584237,1742730639023,-500.0,0.00013698,2]
[356584238,1742730639048,-500.0,0.00013698,2]
[356584239,1742730639072,-2880.87,0.00013698,2]
[356584240,1742730639097,-793.72,0.00013698,2]
[356584241,1742730639122,-500.0,0.00013698,2]
[356584242,1742730639149,-801.75,0.00013698,2]
[356584243,1742730639176,-1715.05,0.00013698,2]
[356584244,1742730639200,-1964.9,0.00013698,2]
[356584245,1742730639225,-500.0,0.00013698,2]
[356584246,1742730639250,-610.04,0.00013698,2]
[356584247,1742730639276,-3290.26,0.00013698,2]
[356584248,1742730639301,-500.0,0.00013698,2]
[356584249,1742730639327,-500.0,0.00013698,2]
[356584250,1742730639354,-912.28,0.00013698,2]
[356584251,1742730639379,-1781.16426064,0.00013698,2]
[356584252,1742730639445,-1381.9,0.00013698,2]
[356584253,1742730639457,-6149.15573936,0.00013698,2]
[356584254,1742730639466,-275.21178709,0.00013698,2]
[356584255,1742730639488,-413.9676467,0.00013698,2]
[356584256,1742730639515,-522.78056621,0.00013698,2]
[356584257,1742730639525,-500.0,0.00013698,2]
[356584258,1742730639534,-500.0,0.00013698,2]
[356584259,1742730639543,-500.0,0.00013698,2]
[356584260,1742730639553,-4823.35,0.00013698,2]
[356584261,1742730639562,-500.0,0.00013698,2]
[356584262,1742730639572,-562.04,0.00013698,2]
[356584263,1742730639581,-559.68,0.00013698,2]
[356584264,1742730639591,-1692.31,0.00013698,2]
[356584265,1742730639600,-500.0,0.00013698,2]
[356584266,1742730639609,-557.42,0.00013698,2]
[356584267,1742730639619,-2013.01,0.00013698,2]
[356584268,1742730639628,-500.0,0.00013698,2]
[356584269,1742730639637,-500.0,0.00013698,2]
[356584270,1742730639647,-6386.51,0.00013698,2]
[356584271,1742730639659,-788.49,0.00013698,2]
[356584272,1742730639675,-639.07,0.00013698,2]
[356584273,1742730639685,-10515.75,0.00013698,2]
[356584274,1742730639694,-2013.96,0.00013698,2]
[356584275,1742730639704,-500.0,0.00013698,2]
[356584276,1742730639713,-604.69,0.00013698,2]
[356584277,1742730639722,-15280.9419876,0.00013698,2]
[356584278,1742730639764,-25000.0,0.00013698,2]
[356584279,1742730639829,-25000.0,0.00013698,2]
[356584308,1742730640733,-25000.0,0.00013698,2]
[356584309,1742730641191,-61.54631043,0.00013698,2]
[356584310,1742730641751,-25000.0,0.00013698,2]
[356584311,1742730642777,-500.0,0.00013672,2]
[356584312,1742730642803,-234.99910883,0.00013672,2]
[356584313,1742730642829,-24265.00089117,0.00013698,2]
[356584332,1742730643774,-2604.24139735,0.00013698,2]
[356584333,1742730644153,-25000.0,0.00013698,2]
[356584334,1742730645175,-5340.8268764,0.00012164,2]
[356584335,1742730645209,-19659.1731236,0.00013698,2]
[356584343,1742730647274,-16251.28628985,0.00013698,2]
[356584344,1742730647302,-8748.71371015,0.00013698,2]
[356584345,1742730648348,-13477.44628985,0.00013698,2]
[356584346,1742730648380,-500.0,0.00013698,2]
[356584347,1742730648411,-2677.14,0.00013698,2]
[356584348,1742730648443,-7811.25,0.00013698,2]
[356584349,1742730648473,-534.16371015,0.00013698,2]
[356584350,1742730660392,-3043.41718842,0.00013598,2]
[356584351,1742730660421,-2147.80628985,0.00013698,2]
[356584352,1742730660451,-500.0,0.00013698,2]
[356584353,1742730660481,-4594.9,0.00013698,2]
[356584354,1742730660509,-500.0,0.00013698,2]
[356584355,1742730660853,-6213.87652173,0.00013698,2]
[356584356,1742730664382,-574.9366132,0.00017,120]
[356584358,1742730902730,166.567237,0.00010959,2]
[356584359,1742731259324,887.13636831,0.0001522,120]
[356584360,1742731409588,529.35234039,0.00012002,2]
[356584367,1742731554120,-867.32303406,0.00012339,2]
[356584368,1742731619955,346.8,0.00010959,2]
[356584369,1742731633079,-239.13311406,0.00012339,2]
[356584370,1742731647081,-750.26069464,0.00012339,2]
[356584371,1742731647106,-300.0,0.00012571,2]
[356584372,1742731647128,-3122.98146749,0.00012572,2]
[356584373,1742731746079,-300.0,0.0001257,2]
[356584374,1742731746102,-500.0,0.00012571,2]
[356584375,1742731746123,-399.50841706,0.00012571,2]
[356584376,1742731746150,-500.0,0.00012571,2]
[356584377,1742731746178,-500.0,0.00012571,2]
[356584378,1742731746201,-500.0,0.00012571,2]
[356584379,1742731746227,-567.65272542,0.00012571,2]
[356584380,1742731746249,-21689.9789084,0.00012572,2]
[356584381,1742731750081,-87.03962411,0.00012572,2]
[356584382,1742731750103,-250.0,0.00012691,2]
[356584383,1742731750124,-375.5445754,0.00012952,2]
[356584384,1742731750148,-1874.49095953,0.00013497,2]
[356584408,1742731838646,-250.0,0.00012656,2]
[356584409,1742731838657,-213.69357357,0.00013597,2]
[356584410,1742731838670,-86.30642643,0.00013597,2]
[356584411,1742731838680,-508.32681405,0.00013597,2]
[356584412,1742731838692,-285.29474727,0.00013597,2]
[356584413,1742731838703,-4876.9231879,0.00013598,2]
[356584432,1742731843701,-123.0768121,0.00013598,2]
[356584434,1742731843711,-508.94455837,0.00013598,2]
[356584436,1742731845415,-145.19621432,0.00013598,2]
[356584437,1742731845653,-96.36922601,0.00013598,2]
[356584439,1742731949443,290.82,0.00010959,2]
[356584440,1742731950002,166.567237,0.00010959,2]
[356584441,1742731959585,158.53,0.00010959,2]
[356584442,1742731970102,158.53,0.00010959,2]
[356584443,1742731980655,634.15,0.00010959,2]
[356584472,1742732945124,-500.0,0.00012649,2]
[356584473,1742732945149,-500.0,0.00012649,2]
[356584474,1742732945173,-437.47871408,0.00012649,2]
[356584475,1742732945196,-1768.9723299,0.0001265,2]
[356584476,1742732945221,-26576.20203216,0.0001265,2]
[356584482,1742732958105,-282.03581833,0.0001265,2]
[356584483,1742732972177,-159.6043994,0.0001265,2]
[356584484,1742732973083,-12.36867588,0.0001265,2]
[356584485,1742732973105,-198.75820887,0.00013397,2]
[356584486,1742732973128,-2484.35315236,0.0001348,2]
[356584487,1742732973151,-549.71989018,0.00013496,2]
[356584488,1742732973175,-168.35702975,0.00013496,2]
[356584489,1742732973196,-5000.0,0.00013497,2]
[356584490,1742732973217,-613.60997402,0.00013497,2]
[356584491,1742732973238,-5309.88863185,0.00013497,2]
[356584492,1742732973260,-42974.13094149,0.00013498,2]
[356584498,1742732983155,170.099013,0.00010959,2]
[356584520,1742733032026,-198.75820887,0.0001255,2]
[356584521,1742733032036,-225.7825422,0.00012677,2]
[356584566,1742733045815,-74.2174578,0.00012677,2]
[356584567,1742733045826,-24900.0,0.00012678,2]
[356584568,1742733045836,-384.80392313,0.00013497,2]
[356584569,1742733045846,-85804.11017322,0.00013498,2]
[356584570,1742733045858,-58784.28114173,0.00013498,2]
[356584581,1742733957123,-250.0,0.00012518,2]
[356584582,1742733957147,-862.5340628,0.0001255,2]
[356584587,1742734025088,-4137.4659372,0.0001255,2]
[356584588,1742734025110,-5000.0,0.00013,2]
[356584589,1742734025131,-154.95625445,0.00013358,2]
[356584590,1742734025153,-300.0,0.00013396,2]
[356584591,1742734025178,-596.12479272,0.00013397,2]
[356584592,1742734025201,-500.0,0.00013397,2]
[356584593,1742734025223,-373.89439026,0.00013397,2]
[356584594,1742734025247,-219.74537933,0.00013397,2]
[356584596,1742734042085,-280.25462067,0.00013397,2]
[356584597,1742734042109,-297.15376705,0.00013397,2]
[356584598,1742734046098,-202.84623295,0.00013397,2]
[356584599,1742734046127,-416.29642533,0.00013397,2]
[356584604,1742734166250,-160.90950681,0.00013298,2]
[356584667,1742734237766,-4839.09049319,0.00013298,2]
[356584668,1742734237776,-453.0,0.000133,2]
[356584669,1742734237786,-83.70357467,0.00013397,2]
[356584670,1742734237796,-500.0,0.00013397,2]
[356584671,1742734237805,-400.25,0.00013397,2]
[356584672,1742734237814,-417.2873549,0.00013397,2]
[356584673,1742734237824,-5710.55886845,0.00013398,2]
[356584674,1742734237978,-635.74270043,0.00013398,2]
[356584675,1742734238183,-3561.71520727,0.00013398,2]
[356584676,1742734238266,-9253.576306,0.00013398,2]
[356584677,1742734238355,-156316.11239864,0.00013398,2]
[356584680,1742734240227,-2129.85333198,0.00013398,2]
[356584681,1742734240283,-1605.52430516,0.00013398,2]
[356584682,1742734240295,-772.79413623,0.00013398,2]
[356584683,1742734240307,-493.28256153,0.00013398,2]
[356584687,1742734243056,-1266.0766978,0.00012656,2]
[356584688,1742734243067,-411.20805804,0.00013398,2]
[356584694,1742734245965,-28734.57086292,0.00013398,2]
[356584695,1742734246022,-5889.02791052,0.00013398,2]
[356584696,1742734246096,-5041.8902984,0.00013398,2]
[356584698,1742734368792,-150.0,0.00049198,120]
[356584699,1742734368817,-2517.049641,0.00049198,120]
[356584700,1742734368841,-201.84554065,0.00049198,120]
[356584701,1742734368866,-1477.83,0.00049198,120]
[356584702,1742734368891,-1477.83,0.00049198,120]
[356584703,1742734368916,-1477.83,0.00049198,120]
[356584704,1742734368940,-1477.83,0.00049198,120]
[356584705,1742734368965,-1477.83,0.00049198,120]
[356584706,1742734368990,-1477.83,0.00049198,120]
[356584707,1742734369015,-1477.83,0.00049198,120]
[356584708,1742734369041,-1477.83,0.00049198,120]
[356584709,1742734369066,-1477.83,0.00049198,120]
[356584710,1742734369091,-1477.83,0.00049198,120]
[356584711,1742734369117,-1477.83,0.00049198,120]
[356584712,1742734369142,-1477.83,0.00049198,120]
[356584713,1742734369167,-1477.83,0.00049198,120]
[356584714,1742734369192,-1477.83,0.00049198,120]
[356584715,1742734369218,-1477.83,0.00049198,120]
[356584716,1742734369245,-1477.83,0.00049198,120]
[356584717,1742734369271,-1477.83,0.00049198,120]
[356584718,1742734369298,-1477.83,0.00049198,120]
[356584719,1742734369324,-1477.83,0.00049198,120]
[356584720,1742734369348,-1477.83,0.00049198,120]
[356584721,1742734369373,-1477.83,0.00049198,120]
[356584722,1742734369397,-1477.83,0.00049198,120]
[356584723,1742734369421,-1477.83,0.00049198,120]
[356584724,1742734369444,-1477.99128472,0.00049198,120]
[356584725,1742734369469,-156.0,0.00049198,30]
[356584726,1742734369492,-1998.21475762,0.00049198,120]
[356584727,1742734369517,-1100.0,0.00049198,120]
[356584728,1742734369549,-2000.0,0.00049198,30]
[356584729,1742734369579,-2000.0,0.00049198,30]
[356584730,1742734369605,-2789.14663976,0.00049198,120]
[356584731,1742734369636,-500.0,0.00049198,120]
[356584732,1742734369667,-304.88468694,0.00049198,120]
[356584733,1742734369696,-3242.34257211,0.00049198,45]
[356584734,1742734369728,-440.78790721,0.00049198,120]
[356584735,1742734369759,-607.96336959,0.00049198,30]
[356584736,1742734369789,-3468.13626159,0.00049198,120]
[356584737,1742734369820,-551.72383653,0.00049198,120]
[356584738,1742734369848,-517.61912214,0.00049198,120]
[356584739,1742734369879,-3304.5990251,0.00049198,120]
[356584740,1742734369908,-248.11629213,0.00049198,120]
[356584741,1742734369934,-498.999994,0.00049198,120]
[356584742,1742734369962,-903.61392949,0.00049198,120]
[356584743,1742734369992,-493.09055563,0.00049198,120]
[356584744,1742734370022,-3220.592881,0.00049198,30]
[356584745,1742734370052,-968.23573952,0.00049198,120]
[356584746,1742734370084,-543.37399317,0.00049198,120]
[356584747,1742734370117,-2216.48289581,0.00049198,120]
[356584748,1742734370144,-679.08690063,0.00049198,120]
[356584749,1742734370172,-1203.27387736,0.00049198,30]
[356584750,1742734370202,-3200.25297196,0.00049198,30]
[356584751,1742734370235,-240.82074905,0.00049198,120]
[356584752,1742734370265,-1326.2942984,0.00049198,30]
[356584753,1742734370296,-1403.46220728,0.00049198,120]
[356584754,1742734370326,-441.40585915,0.00049198,30]
[356584755,1742734370357,-934.69856366,0.00049198,120]
[356584756,1742734370384,-536.26072871,0.00049198,60]
[356584757,1742734370412,-2000.0,0.00049198,120]
[356584758,1742734370442,-240.71122548,0.00049198,30]
[356584759,1742734370472,-365.74692541,0.00049198,120]
[356584760,1742734370501,-1085.86706351,0.00049198,120]
[356584761,1742734370531,-1564.44734474,0.00049198,30]
[356584762,1742734370561,-937.23372193,0.00049198,120]
[356584763,1742734370590,-3134.01364867,0.00049198,120]
[356584764,1742734370618,-2546.3533802,0.00049198,120]
[356584765,1742734370646,-372.62273413,0.00049198,120]
[356584766,1742734370674,-350.73717063,0.00049198,120]
[356584767,1742734370702,-994.00564853,0.00049198,120]
[356584768,1742734370730,-440.27340219,0.00049198,120]
[356584769,1742734370757,-2068.53366401,0.00049198,120]
[356584770,1742734370785,-2301.46081465,0.00049198,120]
[356584771,1742734370814,-843.58835476,0.00049198,120]
[356584772,1742734370841,-1671.7493566,0.00049198,120]
[356584773,1742734370868,-420.84546496,0.00049198,120]
[356584774,1742734370895,-213.01573782,0.00049198,120]
[356584775,1742734370922,-233.70486487,0.00049198,120]
[356584776,1742734370950,-312.72529428,0.00049198,120]
[356584777,1742734370977,-201.02584761,0.00049198,120]
[356584778,1742734371004,-2655.23059249,0.00049198,30]
[356584779,1742734371032,-495.23252163,0.00049198,120]
[356584780,1742734371060,-400.04257173,0.00049198,30]
[356584781,1742734371087,-1983.0,0.00049198,120]
[356584782,1742734371114,-164168.708583,0.00049198,120]
[356584783,1742734371142,-23196.0,0.00049198,32]
[356584784,1742734371169,-358.77289374,0.00049198,120]
[356584785,1742734371197,-249.53679273,0.00049198,30]
[356584786,1742734371224,-344.52003044,0.00049198,30]
[356584787,1742734371252,-631.98877598,0.00049198,120]
[356584788,1742734371281,-6327.12301286,0.00049198,120]
[356584789,1742734371309,-900.0,0.00049198,30]
[356584790,1742734371337,-250.94759346,0.00049198,30]
[356584791,1742734371365,-27013.0,0.00049198,120]
[356584792,1742734371394,-20000.0,0.00049198,49]
[356584793,1742734371422,-1493.09366594,0.00049198,120]
[356584794,1742734371450,-1226.70441364,0.00049198,61]
[356584795,1742734371481,-425.6965151,0.00049198,120]
[356584796,1742734371509,-3051.0,0.00049198,120]
[356584797,1742734371538,-3051.0,0.00049198,120]
[356584798,1742734371567,-3051.0,0.00049198,120]
[356584799,1742734371595,-3051.0,0.00049198,120]
[356584800,1742734371623,-3051.0,0.00049198,120]
[356584801,1742734371651,-3051.0,0.00049198,120]
[356584802,1742734371679,-3051.0,0.00049198,120]
[356584803,1742734371706,-3051.0,0.00049198,120]
[356584804,1742734371732,-3051.0,0.00049198,120]
[356584805,1742734371761,-3051.0,0.00049198,120]
[356584806,1742734371789,-612.32702947,0.00049198,32]
[356584807,1742734371816,-2016.4,0.00049198,30]
[356584808,1742734371843,-891.2,0.00049198,30]
[356584809,1742734371872,-1155.13972682,0.00049198,120]
[356584810,1742734371900,-2647.38280231,0.00049198,120]
[356584811,1742734371928,-1916.0,0.00049198,120]
[356584812,1742734371956,-883.3531903,0.00049198,32]
[356584813,1742734371984,-19338.19769633,0.00049198,120]
[356584814,1742734372011,-191.0,0.00049198,120]
[356584815,1742734372035,-5533.0,0.00049198,32]
[356584816,1742734372062,-500.0,0.00049198,120]
[356584817,1742734372088,-500.0,0.00049198,120]
[356584818,1742734372439,-500.0,0.00049198,120]
[356584819,1742734372465,-239.70750499,0.00049198,120]
[356584820,1742734372488,-1055.0,0.00049198,30]
[356584821,1742734372513,-4673.38904083,0.00049198,60]
[356584822,1742734372540,-5000.0,0.00049198,120]
[356584823,1742734372564,-13072.79,0.00049198,120]
[356584824,1742734372586,-163.69488294,0.00049198,120]
[356584825,1742734372609,-150.0,0.00049198,31]
[356584826,1742734372633,-197.0,0.00049198,31]
[356584827,1742734372656,-393.0,0.00049198,31]
[356584828,1742734372679,-496.0,0.00049198,31]
[356584829,1742734372702,-765.0,0.00049198,31]
[356584830,1742734372725,-786.0,0.00049198,31]
[356584831,1742734372748,-1214.0,0.00049198,31]
[356584832,1742734372771,-150.0,0.00049198,31]
[356584833,1742734372794,-150.0,0.00049198,31]
[356584834,1742734372818,-300.0,0.00049198,31]
[356584835,1742734372842,-600.0,0.00049198,31]
[356584836,1742734372865,-1200.0,0.00049198,31]
[356584837,1742734372888,-1515.0,0.00049198,31]
[356584838,1742734372911,-2335.0,0.00049198,31]
[356584839,1742734372934,-2400.0,0.00049198,31]
[356584840,1742734372958,-3707.0,0.00049198,31]
[356584841,1742734372982,-150.0,0.00049198,31]
[356584842,1742734373005,-239.0,0.00049198,31]
[356584843,1742734373028,-479.0,0.00049198,31]
[356584844,1742734373052,-604.0,0.00049198,31]
[356584845,1742734373076,-931.0,0.00049198,31]
[356584846,1742734373100,-957.0,0.00049198,31]
[356584847,1742734373124,-1478.0,0.00049198,31]
[356584848,1742734373147,-150.0,0.00049198,120]
[356584849,1742734373170,-2040.90924714,0.00049198,60]